Workbook

Sheet Summary
C1: PROCESS CALCULATION | M1: Document No. | P1: PRxxxx
C2: SUMMARY SHEET | M2: Sheet | P2: 1 | Q2: of | T2: Rev. | U2: 1
B3: Job | M3: Item No. (s)
B4: Item Name / Subject
B6: 1. OBJECTIVE
B8: To size suitable relief valves to protect | J8: from any possible overpressure
B17: 2. ASSUMPTIONS
B25: 6. The protected vessel will be built to ASME VIII codes ( based on vendor information)
B38: 3. REFERENCES
B40: 1. API RP520 Part.1
B41: 2. Shell DEP 80.45.10.10-Gen
B42: 3. Gas Processors Suppliers Assoc.,"Engineering Data Book"
B51: 4. CONCLUSIONS
B53: The sizing calculation method chosen was | H53: API 520 Gas critical flow | Y53: API 520 Gas critical flow | AC53: 1
B54: The only credible overpressure scenario was | Y54: API 520 Gas sub-critical flow | AC54: 2
B55: The fire load was calculated as | H55: kg/h | Y55: API 520 Liquid API certified | AC55: 3
B56: The calculated relief area is | H56: mm2 | Y56: Non-standard | AC56: 4
B57: This required standard orifice(s) of
C62: 1 | E62: Date | G62: 2 | I62: Date | K62: 3 | M62: Date | O62: 4 | Q62: Date | S62: 5 | U62: Date
B63: Description
B64: Made / Revised by | C64: JG | E64: 2003-12-08 | Y64: =MAX(E64,I64,M64,Q64,U64) -> 2003-12-08
B65: Checked by | Y65: =MAX(E65,I65,M65,Q65,U65) -> 00:00:00
B66: Approved Process | Y66: =MAX(E66,I66,M66,Q66,U66) -> 00:00:00
B67: Approved

Sheet RV Selection(Crit flow)
B1: Project:
B2: Calculations for: | D2: Divn/Dept: | F2: Job Nr/File No .
D3: Calculated by: | F3: Date: | H3: Sheet No. | U3: Std/Conv
D4: Checked by: | J4: 2 | K4: =CHOOSE($J$4,1,645.16) -> 645.16 | L4: in2 | M4: =CHOOSE($J$4,F44,K24*F44) -> 0.2688113249 | U4: B/Bellows
K5: Units selection | M5: Overpress | U5: Pilot
J6: USCust | K6: lb/h,psig,F,in2 | M6: 0.1
B7: Relief Valve : | D7: Type | E7: B/Bellows | G7: =IF(AND(E7="B/Bellows",CHOOSE(UNITS,1,14.503773)*F13<=50),"WARNING VALVE TYPE!","") ->  | J7: SI units | K7: kg/h,barg,C,mm2 | M7: 0.16
B8: Case | M8: 0.21 | O8: Standard Orifice tables
J9: Units | K9: Multiplier | L9: Offset | M9: =CHOOSE(J4,"SI value","USCust value") -> USCust value
B10: PSV GAS/VAPOUR SIZING CALCULATIONS | E10: USCust | F10: Input values | G10: Comments | N10: 1 | O10: 2 | Q10: 0.0001 | R10: 1 D 2 | S10: 0.11
B11: REQUIRED CAPACITY (W) = | E11: =CHOOSE(UNITS,"lb/h","kg/h") -> kg/h | F11: 10000 | G11: API Example3.6.3.2 | J11: Mass | K11: =CHOOSE($J$4,0.45359237,1/0.45359237) -> 2.204622622 | L11: 0 | M11: =F11*K11+L11 -> 22046.22622 | N11: 2 | Q11: 0.11 | R11: 1 E 2 | S11: 0.196 | U11: API RP520 Back pressure corrections
B12: MOLECULAR WEIGHT (M) = | E12: - | F12: 29 | J12: - | K12: 1 | M12: =F12*K12+L12 -> 29 | N12: 3 | Q12: 0.196 | R12: 1.5 F 2 | S12: 0.307 | U12: Standard Conventional or Pilot Operated
B13: SET PRESSURE (Pset) = | E13: =CHOOSE(UNITS,"psig","barg") -> barg | F13: 60 | J13: Press | K13: =CHOOSE($J$4,0.068947573,1/0.068947573) -> 14.50377376 | M13: 870.2264255 | N13: 4 | Q13: 0.307 | R13: 2 G 3 | S13: 0.503 | V13: calc val | W13: min val | Y13: 0.1
B14: OVERPRESSURE = | E14: % | F14: 0.1 | G14: ASME VIII non-fire single valve | J14: % | K14: 1 | M14: 0.1 | N14: 5 | Q14: 0.503 | R14: 2 H 3 | S14: 0.785 | U14: rabs | V14: =(F16+F15)/(F13+F15) -> 0.5314334522 | W14: =($Z$31+$Z$32*F18)/(1+$Z$33*F18+$Z$34*F18^2) -> 0.5867996027 | Y14: Rational Function: y=(a+bx)/(1+cx+dx^2)
B15: ATMOS PRESSURE (Patm)= | E15: =CHOOSE(UNITS,"psia","bara") -> bara | F15: 14.6959 | G15: ground level | J15: Press | K15: =CHOOSE($J$4,0.068947573,1/0.068947573) -> 14.50377376 | L15: 0 | M15: 213.1460088 | N15: 6 | Q15: 0.785 | R15: 3 J 4 | S15: 1.287 | U15: k/(k-1) | V15: =F18/(F18-1) -> 12.11111111 | Y15: Coefficient Data:
B16: BACK PRESSURE(Pback) | E16: =CHOOSE(UNITS,"psig","barg") -> barg | F16: 25 | G16: incl built-up back P | J16: Press | K16: =CHOOSE($J$4,0.068947573,1/0.068947573) -> 14.50377376 | M16: 362.594344 | N16: 7 | Q16: 1.287 | R16: 3 K 6 | S16: 1.838 | U16: 1-r | V16: =1-V14 -> 0.4685665478 | Y16: a = | Z16: -6.3614087e-06
B17: TEMPERATURE (T) = | E17: =CHOOSE(UNITS,"F","C") -> C | F17: 120 | J17: Temp | K17: =CHOOSE($J$4,1/1.8,1.8) -> 1.8 | L17: =CHOOSE($J$4,-17.7777777777777,32) -> 32 | M17: 248 | N17: 8 | Q17: 1.838 | R17: 4 L 6 | S17: 2.853 | U17: sqrt term | V17: =V15*V14^(2/F18)*((1-V14^(1/V15))/V16) -> 0.4121152938 | Y17: b = | Z17: 2.8934539
B18: SPECIFIC HEAT RATIO (k) = | E18: - | F18: 1.09 | M18: =F24*K18+L18 -> 0 | N18: 9 | Q18: 2.853 | R18: 4 M 6 | S18: 3.6 | U18: Ö | V18: =SQRT(V17) -> 0.6419620657 | Y18: c = | Z18: -4.3098541
B19: COMPRESSIBILITY (z) = | E19: - | F19: 0.84 | J19: - | K19: 1 | M19: =F18*K19+L19 -> 1.09 | N19: 10 | Q19: 3.6 | R19: 4 N 6 | S19: 4.34 | V19: =735*V18/F38 -> 1.449746642 | Y19: d = | Z19: 12.934358
B20: COEFF. OF DISCHARGE (Kd) = | E20: - | F20: 0.975 | G20: API 520 rec. No rupture disk | J20: - | K20: 1 | M20: =F19*K20+L20 -> 0.84 | N20: 11 | Q20: 4.34 | R20: 4 P 6 | S20: 6.379 | V20: =V19*SQRT(V16) -> 0.9923794252 | W20: 0.0005317612075 | Y20: 0.16
B21: CAPACITY CORRECTION FACTOR (Kb) | E21: - | F21: 1 | G21: input according to type | J21: - | K21: 1 | M21: =F20*K21+L21 -> 0.975 | N21: 12 | Q21: 6.379 | R21: 6 Q 8 | S21: 11.045 | U21: Kb | V21: =IF(V14<W14,1,V20+W20) -> 1 | Y21: Rational Function: y=(a+bx)/(1+cx+dx^2)
B22: COMBINATION CORRECTION FACTOR (Kc) | E22: - | F22: 1 | J22: - | K22: 1 | M22: =F21*K22+L22 -> 1 | N22: 13 | Q22: 11.045 | R22: 6 R 10 | S22: 16 | Y22: Coefficient Data:
B23: CONSTANT FOR CRIT.FLOW ORIF. AREA (Ccfoa) | E23: =CHOOSE(UNITS,"US Cust","SI units") -> SI units | F23: =CHOOSE(UNITS,1,131.6) -> 131.6 | J23: - | K23: 1 | M23: =F22*K23+L23 -> 1 | N23: 14 | Q23: 16 | R23: 8 T 10 | S23: 26 | U23: Balanced Bellows (critical flow only) | Y23: a = | Z23: 4.0102182e-09
B24: CONST. FOR CONVERSION TO ABS. TEMP( Tcon ) | E24: =CHOOSE(UNITS,"F->R","C->K") -> C->K | F24: =CHOOSE(UNITS,459.67,273.15) -> 273.15 | J24: area | K24: =CHOOSE($J$4,25.4^2,1/(25.4^2)) -> 0.0015500031 | Q24: 26 | R24: Too big | U24: rgauge | V24: =F16/F13 -> 0.4166666667 | Y24: b = | Z24: 36.617889
L25: 0 | U25: Kb10 | V25: =AB34*IF(V24<0.29,1,($Z$16+$Z$17*V24)/(1+$Z$18*V24+$Z$19*V24^2)) -> 0.8315765065 | W25: for 10% OP | Y25: c = | Z25: 20.532223
B26: Calculation formula for relieving pressure( P1 ) | U26: Kb16 | V26: =AB34*IF(V24<0.375,1,($Z$23+$Z$24*V24)/(1+$Z$25*V24+$Z$26*V24^2)) -> 0.9680827602 | W26: for 16% OP | Y26: d = | Z26: 35.743058
D27: P1 = Pset * ( 1 + Overpressure) + Patm | U27: Kb21 | V27: =AB34*1 -> 1 | W27: for all BP<50%
B28: RELIEVING PRESSURE (P1) = | E28: =CHOOSE(UNITS,"psia","bara") -> bara | F28: =F13*(1+F14)+F15 -> 80.6959 | G28: =+F28*14.5 -> 1170.09055 | K28: =1/25.4^2 -> 0.0015500031 | Y28: rmax as function of k
K29: =25.4^2 -> 645.16 | Y29: Rational Function: y=(a+bx)/(1+cx+dx^2)
B30: Calculation formula for critical back pressure(Pcf) | Y30: Coefficient Data:
D31: Pcf = P1 * [ 2 / (k+1) ] {k/(k-1)} | Y31: a = | Z31: 0.9890311
B32: CRITICAL BACK PRESSURE(Pcf) = | E32: =CHOOSE(UNITS,"psia","bara") -> bara | F32: =F28*(2/(F18+1))^(F18/(F18-1)) -> 47.35130493 | Y32: b = | Z32: 0.12680632
B33: ACTUAL BACK PRESSURE(P2) | E33: =CHOOSE(UNITS,"psia","bara") -> bara | F33: =F16+F15 -> 39.6959 | Y33: c = | Z33: 0.78156751
B34: Check if Critical Flow (P2 <= Pcf) | F34: =IF((F16+F15)<=F32,"TRUE!","FALSE!") -> TRUE! | G34: =IF(F34="FALSE!",0,1) -> 1 | Y34: d = | Z34: 0.058164267 | AB34: =IF(F34="TRUE!",1,0) -> 1
B35: The following equations are valid for critical flow of Gas or Vapour only
B36: Calculation formula for Sp. Ht. coefficient ( C )
D37: C = 519.7 * Ö {(k)[2/ (k+1) ](k+1)/(k-1)} | G37: Ref. API 520 Fig.32
B38: SP. HT COEFFICIENT (C) = | E38: - | F38: =519.7*((((2/(F18+1))^((F18+1)/(F18-1)))*F18)^0.5) -> 325.4652258
B40: Calculation formula for crit. flow. calc. orif. area (AGCF)
C41: AGCF = | D41: Ccfoa * W * Ö [ ( Tabs) * z / M ] | G41: Ref. API 520 Eq.3.2
D42: P1 * C * Kd * Kb * Kc
B43: Tabs = T + Tcon | E43: =CHOOSE(UNITS,"R","K") -> K | F43: =F17+F24 -> 393.15
B44: Calc. Area ( Acfoa) = | E44: =CHOOSE(UNITS,"in²","mm²") -> mm² | F44: =F23*G34*F11*SQRT((F43)*F19/F12)/F28/F38/F20/F21/F22 -> 173.4263144
B46: Calculation formula for diameter (d)
C47: d = | D47: Ö (4 * AG/ p )
E48: =CHOOSE(UNITS,"in","mm") -> mm | F48: =SQRT(F44*4/PI()) -> 14.85978605
B49: Selection of no. off and API standard letter orifice
B50: User choice of number | F50: 1 | G50: Check overpressure
B51: Selected API Orifice = | F51: =CHOOSE($J$4,VLOOKUP(M4,orifices,2,TRUE),VLOOKUP(0.0015500031*F44/F50,orifices,2,TRUE)) -> 1.5 F 2
B52: Selected Orifice Area (Asel) = | E52: =CHOOSE(UNITS,"in²","mm²") -> mm² | F52: =F50*CHOOSE(UNITS,1,645.16)*VLOOKUP(F51,orificesize,2,FALSE) -> 198.06412
D53: Non std orifice | E53: =CHOOSE(UNITS,"in²","mm²") -> mm² | F53: 5 | G53: =IF((F53*F50)<F44,"LESS THAN REQUIRED AREA!","") -> LESS THAN REQUIRED AREA!
B54: Calculation formula for rated flow = Aselect / Acalc * W
B55: Rated Flow per PSV = | E55: =CHOOSE(UNITS,"lb/h","kg/h") -> kg/h | F55: =IF(ISBLANK(F53),F52/F44*F11,F53/F44*F11) -> 288.3068823
B58: Conclusion :
B60: Relief valve selection table:
B61: Ref: GPSA Engineering Data Book Fig. 5-7
C62: Orifice | D62: Area | E62: Area | F62: Orifice | G62: Area | H62: Area
D63: in2 | E63: mm² | G63: in2 | H63: mm2
C64: =INDEX(orificesize,N10,1) -> 1 D 2 | D64: =INDEX(orificesize,N10,2) -> 0.11 | E64: 71 | F64: =INDEX(orificesize,$N17,1) -> 4 L 6 | G64: =INDEX(orificesize,$N17,2) -> 2.853 | H64: 1841
C65: 1 E 2 | D65: 0.196 | E65: 125 | F65: 4 M 6 | G65: 3.6 | H65: 2323
C66: 1.5 F 2 | D66: 0.307 | E66: 198 | F66: 4 N 6 | G66: 4.34 | H66: 2800
C67: 2 G 3 | D67: 0.503 | E67: 325 | F67: 4 P 6 | G67: 6.379 | H67: 4116
C68: 2 H 3 | D68: 0.785 | E68: 506 | F68: 6 Q 8 | G68: 11.045 | H68: 7129
C69: 3 J 4 | D69: 1.287 | E69: 830 | F69: 6 R 10 | G69: 16 | H69: 10323
C70: 3 K 6 | D70: 1.838 | E70: 1186 | F70: 8 T 10 | G70: 26 | H70: 16774

Sheet RV Selection (sub-crit)
B1: Project:
B2: Calculations for: | D2: Divn/Dept | F2: Job Nr/File No.
D3: Calculated by: | F3: Date: | H3: Sheet No.
D4: Checked by: | F4: Date:
B6: Relief Valve : | C6: ='RV Selection(Crit flow)'!C7 -> 0
B7: Case | C7: ='RV Selection(Crit flow)'!C8 -> 0
C8: ='RV Selection(Crit flow)'!C9 -> 0
E9: =CHOOSE('RV Selection(Crit flow)'!$J$4,"USCust","SI Units") -> SI Units | F9: Value | G9: Comments
B10: ='RV Selection(Crit flow)'!B11 -> REQUIRED CAPACITY (W) = | E10: =CHOOSE(UNITS,"lb/h","kg/h") -> kg/h | F10: ='RV Selection(Crit flow)'!F11 -> 10000
B11: ='RV Selection(Crit flow)'!B12 -> MOLECULAR WEIGHT (M) = | E11: ='RV Selection(Crit flow)'!E12 -> - | F11: ='RV Selection(Crit flow)'!F12 -> 29
B12: ='RV Selection(Crit flow)'!B13 -> SET PRESSURE (Pset) = | E12: =CHOOSE(UNITS,"psig","barg") -> barg | F12: ='RV Selection(Crit flow)'!F13 -> 60
B13: ='RV Selection(Crit flow)'!B14 -> OVERPRESSURE = | E13: % | F13: ='RV Selection(Crit flow)'!F14 -> 0.1
B14: ='RV Selection(Crit flow)'!B15 -> ATMOS PRESSURE (Patm)= | E14: =CHOOSE(UNITS,"psia","bara") -> bara | F14: ='RV Selection(Crit flow)'!F15 -> 14.6959
B15: ='RV Selection(Crit flow)'!B16 -> BACK PRESSURE(Pback) | E15: =CHOOSE(UNITS,"psig","barg") -> barg | F15: ='RV Selection(Crit flow)'!F16 -> 25
B16: ='RV Selection(Crit flow)'!B17 -> TEMPERATURE (T) = | E16: =CHOOSE(UNITS,"F","C") -> C | F16: ='RV Selection(Crit flow)'!F17 -> 120
B17: ='RV Selection(Crit flow)'!B18 -> SPECIFIC HEAT RATIO (k) = | E17: ='RV Selection(Crit flow)'!E18 -> - | F17: ='RV Selection(Crit flow)'!F18 -> 1.09
B18: ='RV Selection(Crit flow)'!B19 -> COMPRESSIBILITY (z) = | E18: ='RV Selection(Crit flow)'!E19 -> - | F18: ='RV Selection(Crit flow)'!F19 -> 0.84
B19: ='RV Selection(Crit flow)'!B20 -> COEFF. OF DISCHARGE (Kd) = | E19: ='RV Selection(Crit flow)'!E20 -> - | F19: ='RV Selection(Crit flow)'!F20 -> 0.975
B20: ='RV Selection(Crit flow)'!B21 -> CAPACITY CORRECTION FACTOR (Kb) | E20: ='RV Selection(Crit flow)'!E21 -> - | F20: 1
B21: ='RV Selection(Crit flow)'!B22 -> COMBINATION CORRECTION FACTOR (Kc) | E21: ='RV Selection(Crit flow)'!E22 -> - | F21: ='RV Selection(Crit flow)'!F22 -> 1
B22: CONSTANT FOR Sub crit. orif. area (Cscoa) | F22: =CHOOSE(UNITS,735,5.58659217877095) -> 5.586592179
B23: ='RV Selection(Crit flow)'!B24 -> CONST. FOR CONVERSION TO ABS. TEMP( Tcon ) | E23: =CHOOSE(UNITS,"F->R","C->K") -> C->K | F23: ='RV Selection(Crit flow)'!F24 -> 273.15
B24: The following equations are valid for sub-critical flow of Gas or Vapour (std valves) only
B25: RELIEVING PRESSURE (P1) = | E25: =CHOOSE(UNITS,"psia","bara") -> bara | F25: =F12*(1+F13)+F14 -> 80.6959
B26: CRITICAL BACK PRESSURE(Pcf) = | E26: =CHOOSE(UNITS,"psia","bara") -> bara | F26: ='RV Selection(Crit flow)'!F32 -> 47.35130493
B27: ACTUAL BACK PRESSURE(P2) | E27: =CHOOSE(UNITS,"psia","bara") -> bara | F27: =F15+F14 -> 39.6959
B28: Check for sub-criticality(P2 > Pcf) | F28: =IF('RV Selection(Crit flow)'!F34="TRUE!","FALSE!","TRUE!") -> FALSE! | G28: =IF(F28="TRUE!",1,0) -> 0
B29: Calculation for Subcritical Flow of Gas or Vapour | G29: API RP520 para 3.6.3
B31: Calculate coefficient (F2)
B32: F2 = SQRT[ {k/(k-1)} * r2/k * {(1-r((k-1)/k) / (1-r) } ]
B33: k/(k-1) | E33: - | F33: ='RV Selection(Crit flow)'!F18/('RV Selection(Crit flow)'!F18-1) -> 12.11111111
B34: (k-1)/k | E34: - | F34: =1/F33 -> 0.08256880734
B35: 2/k | E35: - | F35: =2/'RV Selection(Crit flow)'!F18 -> 1.834862385
B36: r | C36: = P2 / P1 | E36: - | F36: =F27/F25 -> 0.4919196638
B37: 1-r | E37: - | F37: =1-F36 -> 0.5080803362
B38: F2 | F38: =SQRT(F33*(F36^F35)*((1-(F36^F34))/F37)) -> 0.6074307526
B40: Calculate required orifice area (AG)
B41: AG ={ W / Cscoa / F2 / Kd / Kc } * SQRT [ Z * Tabs / M / P1 / ( P1- P2) ]
B42: Tabs = T + Tcon | E42: =CHOOSE(UNITS,"R","K") -> K | F42: =F16+F23 -> 393.15
B43: W / Cunit / F2 / Kd / Kc | F43: =F10/F38/F22/F19/F21 -> 3022.397908
B44: Z * Tabs / M / P1 / (P1-P2) | F44: =F18*F42/F11/F25/(F25-F27) -> 0.0034419475
B45: Calc. Area (AG ) | E45: =CHOOSE(UNITS,"in2","mm2") -> mm2 | F45: =G28*F43*SQRT(F44) -> 0
B47: Calculation formula for diameter (d)
C48: d = | D48: Ö (4 * AG/ p )
E49: =CHOOSE(UNITS,"in","mm") -> mm | F49: =SQRT(F45*4/PI()) -> 0
B50: Selected Orifice = | F50: =VLOOKUP(CHOOSE(UNITS,1,1/645.16)*F45,orifices,2,TRUE) -> 
B51: Selected Orifice area (Asel) = | E51: =CHOOSE(UNITS,"in2","mm2") -> mm2 | F51: =VLOOKUP(F50,orificesize,2,FALSE)*CHOOSE(UNITS,1,645.16) -> 
B53: Calculation formula for rated flow = Aselect / Acalc * W
B54: Rated Flow per PSV = | E54: =CHOOSE(UNITS,"lb/h","kg/h") -> kg/h | F54: =F51/F45*F10 -> 
B58: Conclusion : | C58: =CONCATENATE("As per Relief valve selection table:- ",F50," , to be considered") -> 

Sheet RV Selection Liq cert
B1: Project:
B2: Calculations for: | D2: Divn/Dept | F2: Job Nr/File No
D3: Calculated by: | F3: Date: | H3: Sheet No.
D4: Checked by: | F4: Date:
K6: Units selection
B7: Relief Valve : | C7: API RP520 Examples | J7: USCust | K7: Units selection
B8: Case | C8: Work in progress | J8: SI
B10: PSV LIQUID CERTIFIED SIZING CALCULATIONS | E10: Units | F10: Input values | G10: Comments | H10: 1 | K10: YES
B11: REQUIRED CAPACITY (Q) = | E11: =CHOOSE($H$10,"USgpm","lit./min") -> USgpm | F11: 1800 | K11: NO
B12: SPECIFIC GRAVITY rel. water 60F(G) = | E12: - | F12: 0.9
B13: VISCOSITY OF FLUID AT RELIEF CONDITIONS ( Mu) | E13: cP | F13: =2800*F12*2000/12700 -> 396.8503937 | K13: 10
B14: SET PRESSURE (Pset) = | E14: =CHOOSE(LIQUNITS,"psig","bar.g") -> psig | F14: 250 | K14: 21
B15: OVERPRESSURE = | E15: % | F15: 0.1
B16: ATMOS PRESSURE (Patm)= | E16: =CHOOSE(LIQUNITS,"psia","bara") -> psia | F16: 14.7
B17: BACK PRESSURE(Pback) | E17: =CHOOSE(LIQUNITS,"psig","bar.g") -> psig | F17: 50
B18: COEFF. OF DISCHARGE (Kd) = | F18: 0.65 | G18: API reccom. For RV w/o BD
B19: CORRECTION FACTOR DUE TO BACK PRESSURE (Kw) = | F19: 0.97
B20: CORRECTION FACTOR FOR RUPTURE DISK (Kc) = | F20: 1
B21: CORRECTION FACTOR FOR VISCOSITY (Kv) = | E21: Init. Estimate | F21: =IF(F24<>"YES",1,F41) -> 0.9666421535
B22: CONSTANT FOR ORIFICE AREA EQN.(Carea)= | F22: =CHOOSE(LIQUNITS,38,1/1.178) -> 38
B23: CONSTANT FOR REYNOLDS No. EQN(CR)= | F23: =CHOOSE(LIQUNITS,2800,18800) -> 2800
B24: ITERATE FOR Kv? | F24: YES
B26: Calculation formula for relieving pressure( P1 )
C27: P1= | D27: Pset * ( 1 + Overpressure) + Patm
B28: RELIEVING PRESSURE (P1) = | E28: =CHOOSE(LIQUNITS,"psia","bara") -> psia | F28: =F14*(1+F15)+14.6959 -> 289.6959 | G28: =+F28*14.5 -> 4200.59055
B29: BACK PRESSURE(P2)= | C29: P2= | D29: Pback+Patm | E29: =CHOOSE(LIQUNITS,"psia","bara") -> psia | F29: =F17+F16 -> 64.7
B30: Calculation formula for required orifice area(AL)
C31: AL = | D31: Q *Ö [G / ( P1- P2) ] | G31: ref:API RP 520 Pt.1 para.3.8.1.2
D32: Carea * Kd * Kw * Kv
B33: Required orifice area(AL) = | E33: =CHOOSE(LIQUNITS,"in2","mm2") -> in2 | F33: =F11*SQRT((F12/(F28-F29)))/Carea/F18/F19/F20/F21 -> 4.915549119
B34: Selected Orifice = | F34: =CHOOSE(LIQUNITS,VLOOKUP(F33,orifices,2,TRUE),VLOOKUP(0.0015500031*F33,orifices,2,TRUE)) -> 4 P 6
B35: Selected Orifice Area (Asel) = | D35: from table | E35: =CHOOSE(LIQUNITS,"in2","mm2") -> in2 | F35: =CHOOSE(LIQUNITS,1,645.16)*VLOOKUP(F34,orificesize,2,FALSE) -> 6.379
B37: Calculation formula for Reynolds number(R)
C38: R = | D38: Q * CR * G / Mu / Ö Asel | F38: =F11*F23*F12/F13/SQRT(F33) -> 5155.374396
B40: Calculation formula for Kv
C41: Kv = | D41: [.9935+2.878/R0.5 + 342.75/R1.5]-1.0 | F41: =1/(0.9935+2.878/SQRT(F38)+342.75/(F38^1.5)) -> 0.9666421535
B52: Conclusion : | C52: =CONCATENATE("As per Relief valve selection table:- ",F34," , to be considered") -> As per Relief valve selection table:- 4 P 6 , to be considered
B54: Relief valve selection table:
B55: =============================
B56: Ref: GPSA Engineering Data Book Fig. 5-7
B57: Data:
C58: ='RV Selection(Crit flow)'!C62 -> Orifice | D58: ='RV Selection(Crit flow)'!D62 -> Area | E58: ='RV Selection(Crit flow)'!E62 -> Area | F58: ='RV Selection(Crit flow)'!F62 -> Orifice | G58: ='RV Selection(Crit flow)'!G62 -> Area | H58: ='RV Selection(Crit flow)'!H62 -> Area | K58: 1 | L58: 2 | N58: 0.0001 | O58: 1 D 2 | P58: 0.11
C59: ='RV Selection(Crit flow)'!C63 -> 0 | D59: ='RV Selection(Crit flow)'!D63 -> in2 | E59: ='RV Selection(Crit flow)'!E63 -> mm² | F59: ='RV Selection(Crit flow)'!F63 -> 0 | G59: ='RV Selection(Crit flow)'!G63 -> in2 | H59: ='RV Selection(Crit flow)'!H63 -> mm2 | K59: 2 | N59: 0.11 | O59: 1 E 2 | P59: 0.196
C60: ='RV Selection(Crit flow)'!C64 -> 1 D 2 | D60: ='RV Selection(Crit flow)'!D64 -> 0.11 | E60: ='RV Selection(Crit flow)'!E64 -> 71 | F60: ='RV Selection(Crit flow)'!F64 -> 4 L 6 | G60: ='RV Selection(Crit flow)'!G64 -> 2.853 | H60: ='RV Selection(Crit flow)'!H64 -> 1841 | K60: 3 | N60: 0.196 | O60: 1.5 F 2 | P60: 0.307
C61: ='RV Selection(Crit flow)'!C65 -> 1 E 2 | D61: ='RV Selection(Crit flow)'!D65 -> 0.196 | E61: ='RV Selection(Crit flow)'!E65 -> 125 | F61: ='RV Selection(Crit flow)'!F65 -> 4 M 6 | G61: ='RV Selection(Crit flow)'!G65 -> 3.6 | H61: ='RV Selection(Crit flow)'!H65 -> 2323 | K61: 4 | N61: 0.307 | O61: 2 G 3 | P61: 0.503
C62: ='RV Selection(Crit flow)'!C66 -> 1.5 F 2 | D62: ='RV Selection(Crit flow)'!D66 -> 0.307 | E62: ='RV Selection(Crit flow)'!E66 -> 198 | F62: ='RV Selection(Crit flow)'!F66 -> 4 N 6 | G62: ='RV Selection(Crit flow)'!G66 -> 4.34 | H62: ='RV Selection(Crit flow)'!H66 -> 2800 | K62: 5 | N62: 0.503 | O62: 2 H 3 | P62: 0.785
C63: ='RV Selection(Crit flow)'!C67 -> 2 G 3 | D63: ='RV Selection(Crit flow)'!D67 -> 0.503 | E63: ='RV Selection(Crit flow)'!E67 -> 325 | F63: ='RV Selection(Crit flow)'!F67 -> 4 P 6 | G63: ='RV Selection(Crit flow)'!G67 -> 6.379 | H63: ='RV Selection(Crit flow)'!H67 -> 4116 | K63: 6 | N63: 0.785 | O63: 3 J 4 | P63: 1.287
C64: ='RV Selection(Crit flow)'!C68 -> 2 H 3 | D64: ='RV Selection(Crit flow)'!D68 -> 0.785 | E64: ='RV Selection(Crit flow)'!E68 -> 506 | F64: ='RV Selection(Crit flow)'!F68 -> 6 Q 8 | G64: ='RV Selection(Crit flow)'!G68 -> 11.045 | H64: ='RV Selection(Crit flow)'!H68 -> 7129 | K64: 7 | N64: 1.287 | O64: 3 K 6 | P64: 1.838
C65: ='RV Selection(Crit flow)'!C69 -> 3 J 4 | D65: ='RV Selection(Crit flow)'!D69 -> 1.287 | E65: ='RV Selection(Crit flow)'!E69 -> 830 | F65: ='RV Selection(Crit flow)'!F69 -> 6 R 10 | G65: ='RV Selection(Crit flow)'!G69 -> 16 | H65: ='RV Selection(Crit flow)'!H69 -> 10323 | K65: 8 | N65: 1.838 | O65: 4 L 6 | P65: 2.853
K66: 9 | N66: 2.853 | O66: 4 M 6 | P66: 3.6
K67: 10 | N67: 3.6 | O67: 4 N 6 | P67: 4.34
K68: 11 | N68: 4.34 | O68: 4 P 6 | P68: 6.379
K69: 12 | N69: 6.379 | O69: 6 Q 8 | P69: 11.045
K70: 13 | N70: 11.045 | O70: 6 R 10 | P70: 16
K71: 14 | N71: 16 | O71: 8 T 10 | P71: 26
N72: 26 | O72: Too big

Sheet Spare
